bitfinex/quotes_ETHUSD_20250822
["timestamp","ask_amount","ask_price","bid_price","bid_amount"]
[1755845531022,0.3513,4299.3,4298.8,4.2227]
[1755845531228,2.63797646,4298.9,4298.8,4.2227]
[1755845531536,6.60397646,4298.9,4298.8,4.2227]
[1755845531948,6.96810711,4298.9,4298.8,4.2227]
[1755845532102,7.10880711,4298.9,4298.8,4.2227]
[1755845532306,6.96810711,4298.9,4298.8,4.2227]
[1755845535738,6.60397646,4298.9,4298.8,4.2227]
[1755845535905,20.95693357,4298.9,4298.8,4.2227]
[1755845536716,23.95693357,4298.9,4298.8,4.2227]
[1755845537254,25.11747377,4298.9,4298.8,4.2227]
[1755845537808,5.98628469,4298.7,4298.6,1e-08]
[1755845538026,2.32644705,4298.4,4298.0,0.001]
[1755845538313,10.4524608,4298.4,4298.3,1e-08]
[1755845538507,10.32208322,4298.4,4298.3,1e-08]
[1755845538702,10.46278322,4298.4,4298.3,1e-08]
[1755845538909,10.82702695,4298.4,4298.3,1e-08]
[1755845539107,10.95734879,4298.4,4298.3,1e-08]
[1755845539339,10.82702695,4298.4,4298.3,1e-08]
[1755845540927,10.82662188,4298.4,4298.3,1e-08]
[1755845541327,10.60973098,4298.4,4298.3,1e-08]
[1755845541533,11.26973098,4298.4,4298.3,1e-08]
[1755845542431,11.48648957,4298.4,4298.3,1e-08]
[1755845542659,11.48648957,4298.4,4297.9,0.001]
[1755845542660,0.66,4298.0,4297.9,1e-08]
[1755845542840,26.90616087,4298.0,4297.9,1e-08]
[1755845545956,27.04846087,4298.0,4297.9,1e-08]
[1755845546158,26.90616087,4298.0,4297.9,1e-08]
[1755845546314,26.24616087,4298.0,4297.9,1e-08]
[1755845546520,25.93616087,4298.0,4297.9,0.30210001]
[1755845546736,25.43562067,4298.0,4297.9,1e-08]
[1755845546939,25.74392067,4298.0,4297.9,1e-08]
[1755845547346,25.43562067,4298.0,4297.9,1e-08]
[1755845547547,25.43562067,4298.0,4297.9,0.74370001]
[1755845547548,5.756,4298.0,4297.9,0.74370001]
[1755845547722,3.966,4298.1,4297.9,0.74370001]
[1755845548230,6.966,4298.1,4298.0,0.4416]
[1755845548556,3.966,4298.1,4298.0,0.7437]
[1755845548969,3.0,4298.4,4298.0,0.7437]
[1755845549134,3.0,4298.2,4298.1,0.4416]
[1755845549340,3.0,4298.2,4298.1,0.7437]
[1755845549930,3.36417938,4298.2,4298.1,0.7437]
[1755845550976,0.36417938,4298.2,4298.1,0.7437]
[1755845551856,0.36417938,4298.2,4298.1,1.05274678]
[1755845552071,0.36417938,4298.2,4298.1,3.07030943]
[1755845555243,0.36417938,4298.2,4298.1,3.07130943]
[1755845555631,5.756,4298.8,4298.2,2.32652434]
[1755845555830,5.756,4298.8,4298.7,0.3021]
[1755845555831,8.756,4298.8,4298.7,0.3021]
[1755845556060,11.08223057,4298.8,4298.7,0.3021]
[1755845556274,5.756,4298.8,4298.7,0.7437]
[1755845560051,4.33012122,4298.8,4298.7,0.7437]
[1755845561277,0.36412122,4298.8,4298.7,3.37699215]
[1755845562180,0.002,4298.9,4298.8,2.32623057]
[1755845562476,0.002,4298.9,4298.8,3.10243057]
[1755845564484,0.002,4298.9,4298.8,3.12569287]
[1755845564684,0.002,4298.9,4298.8,3.93423057]
[1755845565390,0.002,4298.9,4298.8,4.59423057]
[1755845566095,0.002,4298.9,4298.8,8.55923057]
[1755845566305,0.002,4298.9,4298.8,8.53596827]
[1755845567998,0.002,4298.9,4298.8,10.32596827]
[1755845568218,0.002,4298.9,4298.8,10.44196827]
[1755845569390,0.002,4298.9,4298.8,13.44196827]
[1755845569698,1e-08,4298.9,4298.8,13.44196827]
[1755845571999,1e-08,4298.9,4298.8,25.78964727]
[1755845572204,1e-08,4298.9,4298.8,25.12343027]
[1755845572388,1e-08,4299.7,4299.6,2.98579774]
[1755845572590,1e-08,4299.7,4299.6,13.01303149]
[1755845572777,1e-08,4299.7,4299.6,12.98977352]
[1755845572982,1e-08,4299.7,4299.6,13.46117352]
[1755845573473,0.36397917,4301.1,4300.0,0.66]
[1755845573673,0.36397917,4301.1,4300.3,3.29021915]
[1755845573896,0.36397917,4301.1,4300.3,4.25041392]
[1755845574095,0.36397917,4301.1,4300.3,4.86106811]
[1755845574305,0.36397917,4301.1,4300.3,4.83781392]
[1755845574774,0.36397917,4301.1,4300.3,7.83781392]
[1755845574970,1e-08,4300.4,4300.3,20.07614492]
[1755845575188,1e-08,4300.4,4300.3,17.51514492]
[1755845575414,1e-08,4300.4,4300.3,17.24764492]
[1755845577012,1e-08,4300.4,4300.3,21.20964492]
[1755845579809,1e-08,4300.4,4300.3,17.64988292]
[1755845580109,1e-08,4300.4,4300.3,16.85944892]
[1755845580413,1e-08,4300.4,4300.3,15.71824892]
[1755845580611,1e-08,4300.4,4300.3,11.79981392]
[1755845581798,1e-08,4300.4,4300.3,11.79881392]
[1755845581982,1e-08,4300.4,4300.3,7.83781392]
[1755845582185,1e-08,4300.4,4300.3,11.79881392]
[1755845582378,0.09900001,4300.4,4300.3,10.24661392]
[1755845582591,1e-08,4300.4,4300.3,10.24661392]
[1755845582792,1e-08,4300.4,4300.3,10.90661392]
[1755845583398,1e-08,4300.4,4300.3,11.21141392]
[1755845584193,1e-08,4300.4,4300.3,11.68281392]
[1755845585513,1e-08,4300.4,4300.3,10.90561392]
[1755845586122,1e-08,4300.4,4300.3,11.68181392]
[1755845587818,1e-08,4300.4,4300.3,11.68081392]
[1755845590119,1e-08,4300.4,4300.3,11.20941392]
[1755845590903,1e-08,4300.4,4300.3,10.90461392]
[1755845591288,1e-08,4300.4,4300.3,11.63801392]
[1755845591824,1e-08,4300.4,4300.3,10.90461392]
[1755845592926,1e-08,4300.4,4300.3,11.19951392]
[1755845593297,1e-08,4300.4,4300.3,11.63801392]
[1755845593524,0.09900001,4300.4,4300.3,10.90361392]
[1755845594324,1e-08,4300.4,4300.3,10.90361392]
[1755845594715,1e-08,4300.4,4300.3,11.19851392]
[1755845595118,1e-08,4300.4,4300.3,11.63701392]
[1755845597207,1e-08,4300.4,4300.3,7.67901392]
[1755845597411,1e-08,4300.4,4300.3,11.63701392]
[1755845598708,1e-08,4300.4,4300.3,18.38419736]
[1755845599230,1e-08,4300.4,4300.3,11.75301392]
[1755845599433,0.00350001,4300.4,4300.3,7.06161392]
[1755845599630,1e-08,4300.4,4300.3,11.01961392]
[1755845599835,1e-08,4300.4,4300.3,11.19040515]
[1755845600016,1e-08,4300.4,4300.3,11.48530515]
[1755845601947,1e-08,4300.4,4300.3,11.19040515]
[1755845602349,1e-08,4300.4,4300.3,11.48530515]
[1755845602534,1e-08,4300.4,4300.3,11.92380515]
[1755845604861,1e-08,4300.4,4300.3,8.19040515]
[1755845605340,1e-08,4300.4,4300.3,8.18940515]
[1755845605540,1e-08,4300.4,4300.3,8.48430515]
[1755845606515,1e-08,4300.4,4300.3,8.18940515]
[1755845608135,1e-08,4300.4,4300.3,8.92280515]
[1755845608335,1e-08,4300.4,4300.3,7.96580515]
[1755845608538,1e-08,4300.4,4300.3,13.70980515]
[1755845610759,1e-08,4300.4,4300.3,10.70980515]
[1755845610937,1e-08,4300.4,4300.3,17.99980515]
[1755845611264,1e-08,4300.4,4300.3,38.05340815]
[1755845611412,1e-08,4300.9,4300.7,0.66]
[1755845611612,1e-08,4300.9,4300.8,35.63774172]
[1755845611817,1e-08,4300.9,4300.8,44.64400624]
[1755845612013,1e-08,4300.9,4300.8,45.08250624]
[1755845613429,1e-08,4300.9,4300.8,24.5620308]
[1755845613625,1e-08,4300.9,4300.8,15.0740488]
[1755845614117,1e-08,4300.9,4300.8,14.7791488]
[1755845614330,0.09900001,4300.9,4300.8,14.7791488]
[1755845614523,1e-08,4300.9,4300.8,14.7791488]
[1755845614953,1e-08,4300.9,4300.8,10.4891488]
[1755845615447,1e-08,4300.9,4300.8,10.7840488]
[1755845615748,1e-08,4300.9,4300.8,11.2225488]
[1755845616936,1e-08,4300.9,4300.8,7.2665488]
[1755845617150,1e-08,4300.9,4300.8,11.2215488]
[1755845618967,1e-08,4300.9,4300.8,10.7830488]
[1755845619658,1e-08,4300.9,4300.8,6.5331488]
[1755845619865,1e-08,4300.9,4300.8,10.4881488]
[1755845620569,1e-08,4300.9,4300.8,11.2314488]
[1755845620772,1e-08,4300.9,4300.8,7.2764488]
[1755845621081,1e-08,4300.9,4300.8,15.5204488]
[1755845621851,1e-08,4300.9,4300.8,15.5214488]
[1755845624091,1e-08,4300.9,4300.8,23.7195348]
[1755845625347,1e-08,4300.9,4300.8,19.7655348]
[1755845625555,1e-08,4300.9,4300.8,22.2352948]
[1755845625789,1e-08,4301.6,4301.5,2.98477042]
[1755845625959,1e-08,4301.6,4301.5,12.57367928]
[1755845626158,1e-08,4301.6,4301.5,13.00103158]
[1755845626566,1e-08,4301.6,4301.5,13.09420658]
[1755845626772,1e-08,4301.6,4301.5,13.21020658]
[1755845628164,1e-08,4301.6,4301.5,12.46590658]
[1755845628350,0.09900001,4301.6,4301.5,12.46590658]
[1755845628550,1e-08,4301.6,4301.5,12.75860658]
[1755845628792,1e-08,4301.6,4301.5,13.20920658]
[1755845628957,1e-08,4301.6,4301.5,12.46590658]
[1755845629157,1e-08,4301.6,4301.5,8.51290658]
[1755845629371,1e-08,4301.6,4301.5,12.46590658]
[1755845629892,1e-08,4301.6,4301.5,8.51290658]
[1755845630078,0.09900001,4301.6,4301.5,12.46590658]
[1755845631894,0.09900001,4301.6,4301.5,12.46490658]
[1755845632392,1e-08,4301.6,4301.5,12.75760658]
[1755845633309,1e-08,4301.8,4301.6,5.98471638]
[1755845633508,0.002,4302.6,4302.5,2.98423009]
[1755845633675,0.002,4302.6,4302.5,9.15617239]
[1755845634006,0.002,4302.6,4302.5,19.70169109]
[1755845634208,0.002,4302.6,4302.5,8.53473009]
[1755845634408,0.3538,4303.4,4302.7,2.98412206]
[1755845634708,0.3538,4303.4,4302.7,9.95936328]
[1755845635007,0.3538,4303.4,4302.7,9.93612206]
[1755845635371,0.71754369,4303.7,4302.7,10.22882206]
[1755845635573,0.71754369,4303.7,4302.7,9.93612206]
[1755845635774,0.71754369,4303.7,4302.7,11.54158759]
[1755845637086,0.3538,4303.5,4302.7,11.54158759]
[1755845637291,0.119,4302.8,4302.7,7.58958759]
[1755845637498,0.02,4302.8,4302.7,11.83428759]
[1755845637675,0.02,4302.8,4302.7,12.28488759]
[1755845637877,0.02,4302.8,4302.7,12.63868759]
[1755845638282,0.02,4302.8,4302.7,11.89438759]
[1755845640111,0.02,4302.8,4302.7,12.18708759]
[1755845640407,0.02,4302.8,4302.7,12.63768759]
[1755845640710,0.02,4302.8,4302.7,11.89438759]
[1755845641410,0.02,4302.8,4302.7,7.94338759]
[1755845641611,0.31,4302.8,4302.7,11.89338759]
[1755845641913,0.02,4302.8,4302.7,12.63668759]
[1755845644511,0.02,4302.8,4302.7,8.68668759]
[1755845644733,0.02,4302.8,4302.7,12.63668759]
[1755845645026,0.02,4302.8,4302.7,8.68668759]
[1755845645326,0.02,4302.8,4302.7,11.89238759]
[1755845645503,0.02,4302.8,4302.7,12.18508759]
[1755845645926,0.02,4302.8,4302.7,11.89238759]
[1755845646395,0.02,4302.8,4302.7,7.94338759]
[1755845646601,0.02,4302.8,4302.7,11.89238759]
[1755845648830,0.02,4302.8,4302.7,12.17928759]
[1755845649598,0.02,4302.8,4302.7,8.23028759]
[1755845649896,0.02,4302.8,4302.7,12.17928759]
[1755845650720,0.02,4302.8,4302.7,11.82548759]
[1755845650926,0.02,4302.8,4302.7,11.53858759]
[1755845653443,0.02,4302.8,4302.7,12.29818759]
[1755845653738,0.02,4302.8,4302.7,11.53858759]
[1755845653916,0.119,4302.8,4302.7,7.58958759]
[1755845654127,0.119,4302.8,4302.7,11.53758759]
[1755845655132,0.02,4302.8,4302.7,11.82448759]
[1755845655437,0.02,4302.8,4302.7,12.29718759]
[1755845656632,0.02,4302.8,4302.7,11.53758759]
[1755845657029,0.02,4302.8,4302.7,7.58958759]
[1755845657212,0.02,4302.8,4302.7,11.53658759]
[1755845657412,0.02,4302.8,4302.7,12.29618759]
[1755845658410,0.02,4302.8,4302.7,8.44233759]
[1755845658613,0.002,4303.3,4303.2,2.32385201]
[1755845658814,0.002,4303.3,4303.2,7.24099053]
[1755845659015,0.002,4303.3,4303.2,8.29024335]
[1755845659460,0.002,4303.3,4303.2,8.00334335]
[1755845660153,0.003,4303.3,4303.2,8.00334335]
[1755845661014,0.003,4303.3,4303.2,4.14948735]
[1755845661210,0.003,4303.3,4303.2,6.29409053]
[1755845661443,0.003,4303.3,4303.2,6.27085201]
[1755845663190,0.003,4303.3,4302.8,0.66]
[1755845663356,0.003,4303.3,4303.2,2.32385201]
[1755845663690,0.003,4303.3,4303.2,6.26985201]
[1755845664482,0.3568,4303.3,4303.2,6.26985201]
[1755845664681,0.3568,4303.3,4303.2,2.32385201]
[1755845664989,0.003,4303.3,4303.2,2.32385201]
[1755845665301,0.003,4303.3,4303.2,6.26985201]
[1755845666583,0.3568,4303.3,4303.2,3.946]
[1755845666777,0.3568,4303.3,4303.2,0.02323852]
[1755845667167,0.3568,4303.3,4303.2,6.29309053]
[1755845667373,0.003,4303.3,4303.2,6.26985201]
[1755845668777,0.002,4303.3,4303.2,6.26985201]
[1755845668977,0.101,4303.3,4303.2,6.26885201]
[1755845671621,0.101,4303.3,4303.2,3.945]
[1755845671990,0.199,4303.3,4303.2,6.26885201]
[1755845672719,0.101,4303.3,4303.2,6.26885201]
[1755845673394,0.101,4303.3,4303.2,2.32385201]
[1755845673598,0.101,4303.3,4303.2,6.26885201]
[1755845675216,0.002,4303.3,4303.2,6.26885201]
[1755845677921,0.101,4303.3,4303.2,6.26885201]
[1755845682338,0.101,4303.3,4303.0,1.787]
[1755845682494,6.63118344,4303.1,4303.0,1.787]
[1755845682832,6.63118344,4303.1,4303.0,5.731]
[1755845683339,6.92468344,4303.1,4303.0,8.05496002]
[1755845684730,6.92468344,4303.1,4303.0,5.731]
[1755845684943,0.002,4303.3,4303.0,6.0411]
[1755845685100,0.002,4303.3,4303.1,0.02323906]
[1755845685430,0.002,4303.3,4303.2,3.943]
[1755845686208,0.002,4303.3,4303.2,7.02975201]
[1755845690635,0.002,4303.3,4303.2,8.80382236]
[1755845691118,0.002,4303.3,4303.2,9.16752036]
[1755845693849,0.002,4303.3,4303.2,9.28352036]
[1755845695036,0.002,4303.3,4303.2,8.91982236]
[1755845695249,0.002,4303.3,4303.2,9.01296436]
[1755845696438,0.002,4303.3,4303.2,8.91982236]
[1755845701829,0.002,4303.3,4303.2,4.52502236]
[1755845702032,0.002,4303.3,4303.2,8.15392236]
[1755845702330,0.002,4303.3,4303.2,8.91682236]
[1755845705758,0.002,4303.3,4303.2,8.15392236]
[1755845705923,0.002,4303.3,4303.2,8.91682236]
[1755845706963,0.002,4303.3,4303.2,4.97682236]
[1755845707159,0.002,4303.3,4303.2,8.91582236]
[1755845710678,0.002,4303.3,4303.2,4.97682236]
[1755845710893,0.002,4303.7,4303.6,2.98363602]
[1755845711192,0.002,4303.7,4303.6,9.52156563]
[1755845711348,0.002,4304.2,4303.9,2.32343672]
[1755845711549,0.002,4304.2,4304.1,3.27656609]
[1755845711749,0.002,4304.2,4304.1,3.29979975]
[1755845712050,0.002,4304.2,4304.1,3.71076609]
[1755845712245,1e-08,4304.2,4304.1,3.84999975]
[1755845712491,1e-08,4304.2,4304.1,5.0399434]
[1755845712788,0.36356489,4305.4,4304.7,2.98304225]
[1755845712957,0.36356489,4305.4,4304.7,7.23747267]
[1755845713164,0.36356489,4305.4,4304.7,7.76444225]
[1755845713557,0.36356489,4305.4,4304.7,8.12800725]
[1755845713885,0.36356489,4305.4,4304.7,9.17311936]
[1755845714084,0.36356489,4305.4,4304.7,5.23511936]
[1755845714389,0.36356489,4305.4,4304.7,9.17311936]
[1755845715983,0.36356489,4305.4,4304.7,8.73891936]
[1755845716182,0.3538,4305.5,4304.7,8.73791936]
[1755845716387,0.02,4305.8,4304.7,9.17211936]
[1755845717292,0.3538,4305.7,4304.7,9.17211936]
[1755845717595,0.3538,4305.7,4304.7,5.23511936]
[1755845717954,0.02,4305.8,4304.7,9.17211936]
[1755845719282,0.36350656,4305.7,4304.7,9.17211936]
[1755845720529,1e-08,4304.8,4304.7,9.17211936]
[1755845721177,1e-08,4304.8,4304.7,23.81417236]
[1755845721377,1e-08,4304.8,4304.7,27.32665036]
[1755845721577,1e-08,4305.3,4305.2,2.98277246]
[1755845721822,1e-08,4305.3,4305.2,9.43647743]
[1755845721996,0.02,4305.8,4305.7,2.98250272]
[1755845722199,0.02,4305.8,4305.7,7.21170272]
[1755845722401,0.02,4305.8,4305.7,7.76190272]
[1755845722610,0.02,4305.8,4305.7,8.7703504]
[1755845723389,0.02,4305.8,4305.7,9.1241504]
[1755845725330,0.02,4305.8,4305.7,5.1881504]
[1755845725517,0.02,4305.8,4305.7,9.1231504]
[1755845725749,0.02,4305.8,4305.7,5.1881504]
[1755845725949,0.119,4305.8,4305.7,8.3957504]
[1755845726548,0.02,4305.8,4305.7,8.3957504]
[1755845726860,0.1215,4305.8,4305.7,8.3957504]
[1755845727730,0.1215,4305.8,4305.7,8.56838551]
[1755845727929,0.1215,4305.8,4305.7,4.63338551]
[1755845728223,0.4703,4305.8,4305.7,6.42913783]
[1755845728448,0.4703,4305.8,4305.3,2.32267522]
[1755845728664,6.63118344,4305.6,4305.3,2.32270092]
[1755845728830,0.3538,4305.5,4305.4,3.934]
[1755845729251,0.4528,4305.5,4305.4,3.934]
[1755845729560,0.4528,4305.5,4305.4,6.25666456]
[1755845729924,0.099,4305.5,4305.4,2.32266456]
[1755845730364,0.099,4305.5,4305.4,6.25666456]
[1755845733873,0.4503,4305.5,4305.4,6.25566456]
[1755845734875,6.73018344,4305.5,4305.2,1.787]
[1755845735176,0.3538,4305.4,4305.3,3.933]
[1755845735776,0.02,4305.8,4305.3,3.95622718]
[1755845735981,0.02,4305.8,4305.3,3.933]
[1755845736181,0.02,4305.8,4305.4,2.32266157]
[1755845736484,0.02,4305.8,4305.6,2.32255667]
[1755845736664,0.02,4305.8,4305.7,3.933]
[1755845736842,0.02,4305.8,4305.7,6.25550272]
[1755845737044,0.119,4305.8,4305.7,6.25550272]
[1755845739962,0.02,4305.8,4305.7,6.25550272]
[1755845740361,0.1215,4305.8,4305.7,6.25550272]
[1755845740882,0.4728,4305.8,4305.4,2.32264834]
[1755845741196,6.63118344,4305.6,4305.5,3.932]
[1755845741550,7.08328344,4305.6,4305.5,3.932]
[1755845741888,7.08328344,4305.6,4305.2,1.787]
[1755845742098,6.91698344,4305.6,4305.3,3.932]
[1755845742302,0.1663,4305.5,4305.3,6.25471004]
[1755845742596,6.91698344,4305.6,4305.3,6.25471004]
[1755845742597,0.4521,4305.4,4305.3,3.932]
[1755845743304,0.81563907,4305.4,4305.2,1.787]
[1755845743460,0.64813907,4305.4,4305.3,3.932]
[1755845744188,0.81563907,4305.4,4305.3,3.932]
[1755845744698,0.64813907,4305.4,4305.3,6.2547185]
[1755845745159,0.64813907,4305.4,4305.3,2.3227185]
[1755845745359,0.64813907,4305.4,4305.3,6.2547185]
[1755845745771,0.2846,4305.4,4305.3,6.2547185]
[1755845746994,0.2846,4305.4,4305.3,3.932]
[1755845747977,0.4515,4305.4,4305.3,3.932]
[1755845748387,0.2846,4305.4,4305.3,3.932]
[1755845748587,0.2846,4305.4,4305.3,6.2547185]
[1755845748912,0.64813523,4305.4,4305.3,3.932]
[1755845751094,0.64813523,4305.4,4305.3,6.2547185]
[1755845751785,0.64813523,4305.4,4305.3,3.932]
[1755845752127,0.64813523,4305.4,4305.3,6.2547185]
[1755845754526,0.64813523,4305.4,4305.3,6.2657185]
[1755845754723,0.64913523,4305.4,4305.3,6.2657185]
[1755845754926,0.64913523,4305.4,4305.3,3.943]
[1755845755689,0.64913523,4305.4,4305.3,6.2657185]
[1755845756906,0.64913523,4305.4,4305.3,3.943]
[1755845757325,2.97179979,4305.4,4305.3,0.011]
[1755845757629,6.13939979,4305.4,4305.3,0.011]
[1755845758597,5.77586456,4305.4,4305.3,0.011]
[1755845759301,3.4532,4305.4,4305.3,0.011]
[1755845759692,5.77586456,4305.4,4305.3,0.011]
[1755845760608,6.27773385,4305.4,4305.3,0.011]
[1755845760920,2.32315019,4304.5,4304.4,0.011]
[1755845761224,5.60725019,4304.5,4304.4,0.011]
[1755845761596,9.70595019,4304.5,4304.4,0.011]
[1755845762326,10.16276988,4304.5,4304.4,0.011]
[1755845762630,7.67091969,4304.5,4304.4,0.011]
[1755845762832,3.36365669,4304.5,4304.4,0.011]
[1755845763131,3.36365669,4304.5,4304.4,0.7644]
[1755845763841,3.36365669,4304.5,4304.4,0.2991]
[1755845764044,3.36365669,4304.5,4304.4,0.011]
[1755845765107,3.36525669,4304.5,4304.4,0.011]
[1755845765315,5.68840688,4304.5,4304.4,0.011]
[1755845765737,3.0016,4304.5,4304.4,0.011]
[1755845766237,5.32475019,4304.5,4304.4,0.011]
[1755845767948,9.60505019,4304.5,4304.4,0.011]
[1755845768638,10.30375219,4304.5,4304.4,0.011]
[1755845769235,10.66739567,4304.5,4304.4,0.011]
[1755845769531,10.31709567,4304.5,4304.4,0.011]
[1755845769845,10.67089567,4304.5,4304.4,0.011]
[1755845770342,3.36364348,4304.5,4304.4,0.7524]
[1755845770551,0.36364348,4304.5,4304.4,3.07560416]
[1755845771619,0.36364348,4304.5,4304.4,3.39471163]
[1755845772042,0.001,4305.4,4305.2,2.3227695]
[1755845772218,0.001,4305.4,4305.3,0.3098]
[1755845772737,0.36456603,4305.4,4305.3,0.7414]
[1755845773555,0.46176603,4305.4,4305.0,3.929]
[1755845774059,0.36456603,4305.4,4305.3,0.3098]
[1755845774927,0.36356603,4305.4,4305.1,0.4316]
[1755845776052,3.0,4305.5,4305.0,2.32286413]
[1755845776230,3.0,4305.5,4305.2,0.4316]
[1755845776622,3.0,4305.5,4304.9,3.929]
[1755845776819,5.3226107,4305.5,4305.0,0.4316]
[1755845777152,5.3226107,4305.5,4305.1,0.4316]
[1755845777153,3.0,4305.5,4305.1,0.4316]
[1755845777355,3.0,4305.5,4305.4,0.3098]
[1755845778346,3.0,4305.5,4305.4,0.7414]
[1755845778774,3.0,4305.5,4305.4,3.06406456]
[1755845778978,3.0,4305.5,4305.4,0.7414]
[1755845779484,3.0,4305.5,4305.4,3.06406456]
[1755845779669,3.0,4305.5,4305.4,0.7414]
[1755845780055,3.3635355,4305.5,4305.4,0.7414]
[1755845780778,3.3635355,4305.5,4305.4,3.06406456]
[1755845780779,0.3635355,4305.5,4305.4,3.06406456]
[1755845781073,0.3635355,4305.5,4305.4,3.78650166]
[1755845781278,0.3635355,4305.5,4305.4,3.76327502]
[1755845782474,0.3635355,4305.5,4305.4,3.06406456]
[1755845786695,0.3635355,4305.5,4305.4,6.99106456]
[1755845787101,0.3635355,4305.5,4305.4,4.6684]
[1755845787301,0.3635355,4305.5,4305.4,6.99106456]
[1755845788200,0.3655355,4305.5,4305.4,6.99106456]
[1755845788701,0.002,4305.5,4305.4,6.99106456]
[1755845788879,0.02,4305.8,4305.4,6.99106456]
[1755845789079,0.02,4305.8,4305.5,2.75421061]
[1755845789402,0.02,4305.8,4305.7,0.3098]
[1755845790999,0.02,4305.8,4305.6,0.4316]
[1755845791995,0.099,4305.7,4305.4,3.926]
[1755845792197,6.63118344,4305.5,4305.4,3.926]
[1755845792367,6.73278344,4305.5,4305.1,3.926]
[1755845792571,6.73278344,4305.5,4304.5,0.4316]
[1755845792781,6.73278344,4305.5,4304.9,2.32289193]
[1755845792984,6.73278344,4305.5,4305.1,2.32281303]
[1755845793180,6.63118344,4305.5,4305.2,0.4316]
[1755845793391,0.36355237,4305.4,4305.3,2.77754568]
[1755845793587,0.36355237,4305.4,4305.3,7.91598256]
[1755845793788,0.36355237,4305.4,4305.3,7.89275538]
[1755845794009,0.36355237,4305.4,4305.3,8.55275538]
[1755845794396,0.02,4305.8,4305.7,2.32250272]
[1755845794709,0.02,4305.8,4305.7,6.55830272]
[1755845794925,0.02,4305.8,4305.7,8.58347303]
[1755845799193,0.02,4305.8,4305.7,11.69947303]
[1755845800109,0.02,4305.8,4305.7,11.79255703]
[1755845801808,0.02,4305.8,4305.7,11.96334335]
[1755845802722,0.02,4305.8,4305.7,8.03734335]
[1755845802923,0.119,4305.8,4305.7,2.58637304]
[1755845803123,0.119,4305.8,4305.7,6.51037304]
[1755845803297,0.02,4305.8,4305.7,6.51037304]
[1755845803498,0.02,4305.8,4305.7,7.17978904]
[1755845803917,0.02,4305.8,4305.7,7.83978904]
[1755845804231,0.02,4305.8,4305.7,9.15072532]
[1755845804390,0.02,4305.8,4305.7,9.24381832]
[1755845804926,0.119,4305.8,4305.7,2.32250272]
[1755845805095,0.119,4305.8,4305.4,2.32266433]
[1755845805096,0.02,4305.8,4305.6,3.924]
[1755845805301,0.02,4305.8,4305.7,2.32250272]
[1755845805526,0.022,4305.8,4305.7,2.32250272]
[1755845805896,0.121,4305.8,4305.7,2.32250272]
[1755845806532,0.022,4305.8,4305.7,2.32250272]
[1755845807227,0.022,4305.8,4305.7,2.65432774]
[1755845807430,0.022,4305.8,4305.7,3.998318]
[1755845808194,0.022,4305.8,4305.7,3.21259298]
[1755845808407,0.022,4305.8,4305.7,7.921318]
[1755845808638,0.022,4305.8,4305.7,8.55809298]
[1755845809024,0.022,4305.8,4305.7,8.10419298]
[1755845809227,0.022,4305.8,4305.7,8.55809298]
[1755845810014,0.022,4305.8,4305.7,8.10419298]
[1755845810725,0.022,4305.8,4305.7,8.55809298]
[1755845811126,0.022,4305.8,4305.7,4.63509298]
[1755845811333,0.022,4305.8,4305.7,8.55809298]
[1755845811844,0.022,4305.8,4305.7,4.63509298]
[1755845812060,0.022,4305.8,4305.7,7.79559298]
[1755845812540,0.022,4305.8,4305.7,8.10419298]
[1755845813045,0.121,4305.8,4305.7,3.87259298]
[1755845813256,0.121,4305.8,4305.7,2.98250272]
[1755845813485,0.121,4305.8,4305.7,6.90550272]
[1755845813840,0.121,4305.8,4305.7,2.32250272]
[1755845814173,0.121,4305.8,4305.7,6.24550272]
[1755845814375,0.121,4305.8,4305.7,2.32250272]
[1755845814550,0.121,4305.8,4305.7,6.24550272]
[1755845814876,0.121,4305.8,4305.7,2.32250272]
[1755845815043,0.022,4305.8,4305.7,6.24550272]
[1755845815240,0.022,4305.8,4305.7,6.55410272]
[1755845815453,0.022,4305.8,4305.7,8.52481291]
[1755845821363,0.022,4305.8,4305.7,10.31081291]
[1755845823475,0.022,4305.8,4305.7,5.62531291]
[1755845823669,0.3097,4305.8,4305.7,9.54731291]
[1755845824257,0.022,4305.8,4305.7,9.54731291]
[1755845824658,0.022,4305.8,4305.7,5.62531291]
[1755845824897,0.022,4305.8,4305.7,9.54731291]
[1755845825861,0.022,4305.8,4305.7,9.64041091]
[1755845826688,0.3097,4305.8,4305.7,4.20160072]
[1755845826986,0.3097,4305.8,4305.7,8.03050272]
[1755845829392,0.3097,4305.8,4305.7,2.32250272]
[1755845829592,0.4059,4305.8,4305.7,3.921]
[1755845829893,0.4059,4305.8,4305.7,6.24350272]
[1755845831065,0.3097,4305.8,4305.7,3.921]
[1755845831297,0.4059,4305.8,4305.7,3.921]
[1755845831996,0.4059,4305.8,4305.7,6.24350272]
[1755845832372,0.3097,4305.8,4305.7,6.24350272]
[1755845832584,0.3097,4305.8,4305.7,3.921]
[1755845832767,0.3097,4305.8,4305.7,6.24350272]
[1755845833496,0.3097,4305.8,4305.7,2.32250272]
[1755845833697,0.3097,4305.8,4305.7,6.24350272]
[1755845836984,0.3097,4305.8,4305.7,3.921]
[1755845837206,0.3097,4305.8,4305.4,2.32265065]
[1755845837520,0.3097,4305.8,4305.5,3.921]
[1755845837674,0.3097,4305.8,4305.6,3.921]
[1755845838812,0.3097,4305.8,4305.7,3.921]
[1755845839227,0.6732151,4305.8,4305.3,0.001]
[1755845839382,0.6732151,4305.8,4305.4,3.921]
[1755845839588,0.7424151,4305.8,4305.3,0.001]
[1755845839790,0.7424151,4305.8,4305.3,6.24471275]
[1755845840225,6.63118344,4305.5,4305.3,0.001]
[1755845840488,0.2855,4305.4,4305.3,0.001]
[1755845841625,0.2855,4305.4,4305.3,2.3237185]